bitfinex/quotes_BTCUSD_20240605
["timestamp","ask_amount","ask_price","bid_price","bid_amount"]
[1717573163285,0.32056566,71207.0,71206.0,0.39583189]
[1717573163727,0.32056566,71207.0,71206.0,0.38883189]
[1717573163934,0.32056566,71207.0,71206.0,0.40283189]
[1717573164146,0.32056566,71207.0,71206.0,0.39683189]
[1717573164556,0.32056566,71207.0,71206.0,0.38283189]
[1717573164866,0.32056566,71207.0,71206.0,0.011]
[1717573165071,0.66130066,71207.0,71206.0,0.011]
[1717573165273,0.67130066,71207.0,71206.0,0.011]
[1717573165685,0.67130066,71207.0,71206.0,0.025]
[1717573166086,0.67130066,71207.0,71206.0,0.011]
[1717573166234,0.67130066,71207.0,71206.0,0.021]
[1717573166435,0.50100066,71207.0,71206.0,0.021]
[1717573166653,0.67130066,71207.0,71206.0,0.021]
[1717573167414,0.86130066,71207.0,71206.0,0.021]
[1717573167766,1.14217166,71207.0,71206.0,0.021]
[1717573168451,1.34217166,71207.0,71206.0,0.021]
[1717573168575,1.14217166,71207.0,71206.0,0.011]
[1717573168999,0.86130066,71207.0,71206.0,0.015]
[1717573169219,0.0675,71192.0,71191.0,0.002]
[1717573169419,0.23681622,71192.0,71191.0,0.002]
[1717573169619,0.26681622,71192.0,71191.0,0.002]
[1717573170456,0.26681622,71192.0,71191.0,0.026]
[1717573174920,0.26681622,71192.0,71191.0,0.126]
[1717573177720,0.34581622,71192.0,71191.0,0.126]
[1717573178738,0.34581622,71192.0,71191.0,0.026]
[1717573181124,0.34581622,71192.0,71191.0,0.026946]
[1717573181854,0.34747139,71192.0,71191.0,0.026946]
[1717573182635,0.34747139,71192.0,71191.0,0.126946]
[1717573182963,0.1703,71195.0,71192.0,0.15252861]
[1717573184123,0.1703,71195.0,71192.0,0.16252861]
[1717573184342,0.1703,71195.0,71192.0,0.17352861]
[1717573185524,0.1703,71198.0,71193.0,0.140463]
[1717573186678,0.1703,71198.0,71193.0,0.149463]
[1717573186877,0.1703,71198.0,71193.0,0.159463]
[1717573187291,0.1703,71198.0,71194.0,0.14046]
[1717573188906,0.1703,71198.0,71197.0,0.140455]
[1717573189990,0.1703,71198.0,71194.0,0.14046]
[1717573190218,0.21,71207.0,71197.0,0.005]
[1717573190219,0.2672,71207.0,71197.0,0.005]
[1717573190432,0.00664691,71206.0,71197.0,0.43432493]
[1717573190640,0.1703,71210.0,71204.0,0.140439]
[1717573190850,0.00666401,71209.0,71204.0,0.140439]
[1717573191104,0.00666401,71209.0,71205.0,0.140438]
[1717573191505,0.00666401,71209.0,71206.0,0.140436]
[1717573191737,0.00666401,71209.0,71201.0,0.1542]
[1717573191738,0.00666401,71209.0,71208.0,0.140433]
[1717573192126,0.19,71215.0,71210.0,0.140428]
[1717573192331,0.00664744,71209.0,71202.0,0.28089]
[1717573192539,0.19,71215.0,71211.0,0.140427]
[1717573192921,0.00668846,71214.0,71211.0,0.140427]
[1717573193145,0.00668846,71214.0,71212.0,0.140425]
[1717573193373,0.00668846,71214.0,71213.0,0.140423]
[1717573194124,0.00076,71220.0,71217.0,0.13941659]
[1717573194552,0.00672992,71219.0,71217.0,0.13941659]
[1717573195156,0.0831,71218.0,71212.0,0.140423]
[1717573195366,0.1703,71213.0,71212.0,0.140423]
[1717573195751,0.17699547,71213.0,71209.0,0.140429]
[1717573195951,0.17699547,71213.0,71210.0,0.1]
[1717573196181,0.17699547,71213.0,71209.0,0.14043]
[1717573198163,0.17699547,71213.0,71209.0,0.007]
[1717573199128,0.17699547,71213.0,71207.0,0.240434]
[1717573199527,0.17699547,71213.0,71209.0,0.013]
[1717573199951,0.17699547,71213.0,71207.0,0.240434]
[1717573200154,0.17699547,71213.0,71209.0,0.004]
[1717573200583,0.19699547,71213.0,71209.0,0.006]
[1717573200797,0.19699547,71213.0,71209.0,0.002]
[1717573200798,0.019,71210.0,71209.0,0.002]
[1717573201212,0.25831469,71210.0,71209.0,0.006]
[1717573201873,0.23931469,71210.0,71209.0,0.006]
[1717573202053,0.24931469,71210.0,71209.0,0.006]
[1717573202282,0.25831469,71210.0,71209.0,0.008]
[1717573202492,0.25831469,71210.0,71202.0,0.1]
[1717573202706,0.1703,71206.0,71202.0,0.1]
[1717573203042,0.00671529,71205.0,71202.0,0.1]
[1717573203673,0.00671529,71205.0,71202.0,0.11]
[1717573204242,0.00671529,71205.0,71202.0,0.1]
[1717573204504,0.00671529,71205.0,71202.0,0.11]
[1717573205135,0.019,71197.0,71181.0,0.001]
[1717573205331,0.19,71199.0,71184.0,0.14048]
[1717573205332,0.1703,71193.0,71184.0,0.14048]
[1717573205530,0.1703,71193.0,71181.0,0.140486]
[1717573205751,0.17738028,71193.0,71181.0,0.140486]
[1717573206633,0.17738028,71193.0,71178.0,0.001]
[1717573206834,0.17738028,71193.0,71178.0,0.140492]
[1717573207086,0.32784328,71193.0,71176.0,0.001]
[1717573207201,0.31784328,71193.0,71177.0,0.001]
[1717573207654,0.31784328,71193.0,71176.0,0.001]
[1717573207857,0.33684328,71193.0,71176.0,0.001]
[1717573208015,0.31784328,71193.0,71177.0,0.001]
[1717573208256,0.31784328,71193.0,71176.0,0.001]
[1717573208657,0.33684328,71193.0,71176.0,0.001]
[1717573209027,0.33684328,71193.0,71173.0,0.1649]
[1717573209159,0.99128821,71193.0,71171.0,0.002]
[1717573209359,0.56594328,71193.0,71171.0,0.002]
[1717573209561,1.08047928,71193.0,71172.0,0.082]
[1717573209760,1.08047928,71193.0,71171.0,0.002]
[1717573209761,1.22489821,71193.0,71171.0,0.002]
[1717573209963,1.50582421,71193.0,71171.0,0.002]
[1717573210589,1.50582421,71193.0,71171.0,0.084]
[1717573212554,1.22489821,71193.0,71175.0,0.1576]
[1717573212744,1.08047928,71193.0,71178.0,0.001]
[1717573212880,1.08047928,71193.0,71182.0,0.0776]
[1717573213243,1.36140528,71193.0,71176.0,0.0776]
[1717573213413,1.08047928,71193.0,71176.0,0.0776]
[1717573214477,1.08047928,71193.0,71192.0,0.15347461]
[1717573215115,1.36140528,71193.0,71192.0,0.15347461]
[1717573215373,1.50582421,71193.0,71192.0,0.15347461]
[1717573217127,1.22489821,71193.0,71192.0,0.15347461]
[1717573218076,0.66207928,71193.0,71192.0,0.15347461]
[1717573218306,0.83237928,71193.0,71192.0,0.15347461]
[1717573218873,0.84237928,71193.0,71192.0,0.15347461]
[1717573220065,0.85137928,71193.0,71192.0,0.15347461]
[1717573220261,0.83237928,71193.0,71192.0,0.15347461]
[1717573220627,0.85137928,71193.0,71192.0,0.15347461]
[1717573224287,0.84237928,71193.0,71192.0,0.15347461]
[1717573224495,0.83237928,71193.0,71192.0,0.15347461]
[1717573225391,0.52161628,71193.0,71192.0,0.30447461]
[1717573225564,0.52161628,71193.0,71192.0,0.44593961]
[1717573225804,0.52396041,71193.0,71192.0,0.52913961]
[1717573226010,0.52396041,71193.0,71192.0,0.67355854]
[1717573226201,0.52396041,71193.0,71192.0,0.77355854]
[1717573226410,0.52396041,71193.0,71192.0,1.34541854]
[1717573226520,0.27406041,71193.0,71192.0,1.35541854]
[1717573226728,0.02181628,71193.0,71192.0,1.55941854]
[1717573227177,0.17106,71220.0,71215.0,0.001]
[1717573227412,0.43336945,71216.0,71215.0,0.001]
[1717573227620,0.17106,71220.0,71217.0,0.001]
[1717573227826,0.00076,71220.0,71219.0,0.2408]
[1717573228029,0.00076,71220.0,71219.0,0.140411]
[1717573229678,0.00076,71220.0,71217.0,0.1629]
[1717573229880,0.17106,71220.0,71217.0,0.1629]
[1717573230228,0.17206,71220.0,71219.0,0.013]
[1717573230413,0.17206,71220.0,71219.0,0.007]
[1717573230612,0.17106,71220.0,71217.0,0.1629]
[1717573230813,0.17106,71220.0,71219.0,0.005]
[1717573231040,0.17206,71220.0,71219.0,0.005]
[1717573232247,0.17106,71220.0,71219.0,0.005]
[1717573232452,0.17106,71220.0,71217.0,0.1629]
[1717573232662,0.17106,71220.0,71219.0,0.005]
[1717573233317,0.17106,71220.0,71217.0,0.1699]
[1717573233756,0.17206,71220.0,71217.0,0.1709]
[1717573233973,0.17206,71220.0,71219.0,0.005]
[1717573234305,0.17711119,71220.0,71219.0,0.005]
[1717573234656,0.17711119,71220.0,71217.0,0.1629]
[1717573235791,0.17711119,71220.0,71217.0,0.1739]
[1717573236456,0.17711119,71220.0,71217.0,0.005]
[1717573236680,0.33801119,71220.0,71217.0,0.012]
[1717573236875,0.33801119,71220.0,71212.0,0.140424]
[1717573237086,0.07222824,71216.0,71212.0,0.140424]
[1717573237524,0.00611565,71215.0,71212.0,0.140424]
[1717573238066,0.00611565,71215.0,71213.0,0.140423]
[1717573238454,0.00611565,71215.0,71213.0,0.13942216]
[1717573238663,0.00611565,71215.0,71207.0,0.1625]
[1717573238664,0.00611565,71215.0,71214.0,0.141421]
[1717573239075,0.17106,71220.0,71219.0,0.001]
[1717573239221,0.17206,71220.0,71219.0,0.001]
[1717573240019,0.17206,71220.0,71219.0,0.140411]
[1717573240223,0.17106,71220.0,71219.0,0.141411]
[1717573240423,0.17106,71220.0,71219.0,0.140411]
[1717573240964,0.17718162,71220.0,71219.0,0.140411]
[1717573244086,0.17718162,71220.0,71219.0,0.145411]
[1717573245075,0.17718162,71220.0,71219.0,0.150411]
[1717573245532,0.17718162,71220.0,71219.0,0.151411]
[1717573245728,0.17718162,71220.0,71219.0,0.150411]
[1717573246372,0.17718162,71220.0,71219.0,0.01]
[1717573246761,0.17718162,71220.0,71219.0,0.005]
[1717573246945,0.17718162,71220.0,71217.0,0.140415]
[1717573247143,0.17718162,71220.0,71219.0,0.150411]
[1717573247651,0.17718162,71220.0,71219.0,0.145411]
[1717573247852,0.17718162,71220.0,71219.0,0.147411]
[1717573248095,0.17718162,71220.0,71219.0,0.01]
[1717573249108,0.17718162,71220.0,71219.0,0.003]
[1717573249524,0.17718162,71220.0,71218.0,0.140412]
[1717573249724,0.17718162,71220.0,71219.0,0.003]
[1717573250108,0.17718162,71220.0,71219.0,0.005]
[1717573250311,0.17718162,71220.0,71219.0,0.142411]
[1717573250715,0.17718162,71220.0,71219.0,0.145411]
[1717573250914,0.17718162,71220.0,71219.0,0.143411]
[1717573252411,0.17718162,71220.0,71219.0,0.145411]
[1717573259631,0.42998162,71220.0,71219.0,0.005]
[1717573260100,0.57039062,71220.0,71219.0,0.005]
[1717573260303,0.57039062,71220.0,71219.0,0.002]
[1717573260547,0.58462015,71220.0,71219.0,0.002]
[1717573260744,0.19,71211.0,71201.0,0.140445]
[1717573260857,0.1703,71206.0,71201.0,0.28586393]
[1717573261077,0.0062832,71205.0,71202.0,0.140444]
[1717573261262,0.0062832,71205.0,71199.0,0.140451]
[1717573261464,0.0062832,71205.0,71199.0,0.28486993]
[1717573262232,0.0062832,71205.0,71199.0,0.140451]
[1717573262402,0.0062832,71205.0,71201.0,0.001]
[1717573262603,0.0062832,71205.0,71202.0,0.001]
[1717573262925,0.0062832,71205.0,71203.0,0.001]
[1717573263543,0.0072832,71205.0,71204.0,0.001]
[1717573263753,0.0072832,71205.0,71204.0,0.2386]
[1717573264159,0.0062832,71205.0,71204.0,0.2386]
[1717573264365,0.0072832,71205.0,71204.0,0.2386]
[1717573264692,0.001,71205.0,71204.0,0.2386]
[1717573264901,0.00724866,71205.0,71204.0,0.2386]
[1717573265705,0.00624866,71205.0,71204.0,0.2386]
[1717573265873,0.19,71211.0,71209.0,0.001]
[1717573266068,0.00624213,71210.0,71208.0,0.001]
[1717573266271,0.00624213,71210.0,71209.0,0.001]
[1717573267215,0.00624213,71210.0,71209.0,0.004]
[1717573267838,0.1703,71215.0,71209.0,0.004]
[1717573268041,0.00627858,71214.0,71209.0,0.006]
[1717573268459,0.00627858,71214.0,71211.0,0.001]
[1717573269053,0.00627858,71214.0,71212.0,0.1598]
[1717573269400,0.00627858,71214.0,71213.0,0.0768]
[1717573269758,0.19,71219.0,71216.0,0.001]
[1717573270168,0.19,71219.0,71215.0,0.001]
[1717573270582,0.19,71219.0,71217.0,0.001]
[1717573270831,0.19,71219.0,71214.0,0.140421]
[1717573270994,0.00628775,71218.0,71215.0,0.023]
[1717573271398,0.00628775,71218.0,71214.0,0.023]
[1717573271638,0.00628775,71218.0,71213.0,0.023]
[1717573271783,0.00628775,71218.0,71212.0,0.163425]
[1717573272500,0.1703,71214.0,71212.0,0.163425]
[1717573272714,0.00501932,71213.0,71212.0,0.163425]
[1717573273187,0.00501932,71213.0,71212.0,0.168425]
[1717573273803,0.00501932,71213.0,71212.0,0.173425]
[1717573274005,0.00501932,71213.0,71212.0,0.178425]
[1717573274225,0.00501932,71213.0,71212.0,0.163425]
[1717573274427,0.00501932,71213.0,71212.0,0.023]
[1717573274616,0.00501932,71213.0,71212.0,0.005]
[1717573274882,0.00501932,71213.0,71212.0,0.033]
[1717573275193,0.08071932,71213.0,71212.0,0.033]
[1717573275552,0.24031932,71213.0,71212.0,0.033]
[1717573276071,0.1703,71214.0,71213.0,0.05818068]
[1717573276291,0.1703,71214.0,71213.0,0.08118068]
[1717573277658,0.1703,71214.0,71213.0,0.08418068]
[1717573277856,0.1703,71214.0,71213.0,0.08818068]
[1717573279640,0.413512,71219.0,71213.0,0.08818068]
[1717573279807,0.19,71219.0,71215.0,0.0789]
[1717573280042,0.19,71219.0,71216.0,0.001]
[1717573280255,0.19,71219.0,71218.0,0.001]
[1717573280461,0.19,71219.0,71216.0,0.023]
[1717573283658,0.00612376,71218.0,71216.0,0.023]
[1717573287417,0.00612376,71218.0,71217.0,0.141415]
[1717573287661,0.00612376,71218.0,71217.0,0.372615]
[1717573287886,0.00612376,71218.0,71217.0,0.373615]
[1717573288058,0.00612376,71218.0,71217.0,0.79886493]
[1717573288268,0.00076,71220.0,71219.0,0.141411]
[1717573288471,0.00076,71220.0,71219.0,0.53182993]
[1717573288645,0.00076,71220.0,71219.0,0.81265293]
[1717573289832,0.00076,71220.0,71219.0,0.53182993]
[1717573290504,0.00076,71220.0,71219.0,0.82665293]
[1717573291305,0.00176,71220.0,71219.0,0.84065293]
[1717573291671,0.00176,71220.0,71219.0,1.12147593]
[1717573292727,0.00176,71220.0,71219.0,1.24147593]
[1717573292976,0.00176,71220.0,71219.0,1.22147593]
[1717573304425,0.00176,71220.0,71219.0,0.94065293]
[1717573306213,0.103693,71230.0,71225.0,0.001]
[1717573306559,0.00576147,71229.0,71225.0,0.001]
[1717573306900,0.0779,71231.0,71227.0,0.001]
[1717573307308,0.00576386,71230.0,71227.0,0.001]
[1717573307524,0.00576386,71230.0,71228.0,0.140394]
[1717573308078,0.00576386,71230.0,71225.0,0.1404]
[1717573308298,0.00676386,71230.0,71226.0,0.140397]
[1717573308499,0.00676386,71230.0,71227.0,0.005]
[1717573308703,0.00576386,71230.0,71227.0,0.005]
[1717573309032,0.1704,71228.0,71227.0,0.005]
[1717573309262,0.432,71228.0,71227.0,0.005]
[1717573309474,0.43774929,71228.0,71227.0,0.005]
[1717573309672,0.43774929,71228.0,71217.0,0.140415]
[1717573309873,0.01,71227.0,71217.0,0.140415]
[1717573310110,0.0682,71218.0,71217.0,0.140415]
[1717573310419,0.07393511,71218.0,71217.0,0.140415]
[1717573311244,0.0682,71218.0,71217.0,0.150415]
[1717573311442,0.23123491,71218.0,71217.0,0.150415]
[1717573311842,0.07393491,71218.0,71217.0,0.150415]
[1717573312050,0.07493491,71218.0,71217.0,0.161415]
[1717573312701,0.07493491,71218.0,71217.0,0.162415]
[1717573313459,0.07493491,71218.0,71217.0,0.161415]
[1717573314653,0.07493491,71218.0,71217.0,0.162415]
[1717573315050,0.00673491,71218.0,71217.0,0.162415]
[1717573315485,0.001,71218.0,71217.0,0.162415]
[1717573315756,0.0067393,71218.0,71217.0,0.162415]
[1717573315970,0.0067393,71218.0,71217.0,0.30683393]
[1717573316144,0.0067393,71218.0,71217.0,0.38403393]
[1717573316145,0.001,71218.0,71217.0,0.38403393]
[1717573316746,0.001,71218.0,71217.0,0.53613393]
[1717573318533,0.001,71218.0,71217.0,0.81696493]
[1717573321077,0.001,71218.0,71217.0,0.83996493]
[1717573321626,0.00086,71220.0,71219.0,0.141411]
[1717573321824,0.00086,71220.0,71219.0,0.30882993]
[1717573322220,0.00086,71220.0,71219.0,0.30782993]
[1717573322566,0.00086,71220.0,71219.0,0.30882993]
[1717573322778,0.00086,71220.0,71219.0,0.30782993]
[1717573322976,0.00186,71220.0,71219.0,0.31582993]
[1717573323922,0.00186,71220.0,71219.0,0.32382993]
[1717573324227,0.00186,71220.0,71219.0,0.32282993]
[1717573324431,0.00186,71220.0,71219.0,0.178411]
[1717573325071,0.07006,71220.0,71219.0,0.178411]
[1717573325459,0.07581414,71220.0,71219.0,0.178411]
[1717573326707,0.15721414,71220.0,71219.0,0.178411]
[1717573327611,0.31071414,71220.0,71219.0,0.178411]
[1717573328520,0.15721414,71220.0,71219.0,0.178411]
[1717573329621,0.15721414,71220.0,71219.0,0.038]
[1717573331007,0.07581414,71220.0,71219.0,0.038]
[1717573331204,0.00761414,71220.0,71219.0,0.337711]
[1717573331435,0.00761414,71220.0,71219.0,0.48212993]
[1717573331436,0.00186,71220.0,71219.0,0.48212993]
[1717573331590,0.00186,71220.0,71219.0,0.55712993]
[1717573332753,0.00186,71220.0,71219.0,0.83795293]
[1717573335649,0.00186,71220.0,71219.0,0.85795293]
[1717573335986,0.00186,71220.0,71219.0,0.84795293]
[1717573336194,0.00186,71220.0,71219.0,0.83795293]
[1717573336599,0.00186,71220.0,71219.0,1.30697593]
[1717573336829,0.00186,71220.0,71219.0,1.34879477]
[1717573337032,0.00186,71220.0,71219.0,1.65052719]
[1717573337564,0.00186,71220.0,71219.0,1.97143661]
[1717573337717,0.00086,71220.0,71219.0,1.87979893]
[1717573338114,0.00186,71220.0,71219.0,1.89379893]
[1717573338318,0.00186,71220.0,71219.0,1.88679893]
[1717573338508,0.00186,71220.0,71219.0,1.970491]
[1717573338711,0.00086,71220.0,71219.0,1.956491]
[1717573338907,0.00086,71220.0,71219.0,1.970491]
[1717573339154,0.00186,71220.0,71219.0,1.90079893]
[1717573339306,0.00186,71220.0,71219.0,2.10534603]
[1717573339515,2.23703409,71244.0,71243.0,0.373364]
[1717573339871,2.24285139,71244.0,71243.0,0.51778293]
[1717573341231,2.24285139,71244.0,71243.0,0.52378293]
[1717573341438,2.24285139,71244.0,71243.0,0.45528293]
[1717573341656,2.24285139,71244.0,71243.0,0.44328293]
[1717573341950,2.24285139,71244.0,71243.0,0.44928293]
[1717573342104,2.24285139,71244.0,71243.0,0.46128293]
[1717573342453,2.24285139,71244.0,71243.0,0.29678293]
[1717573342754,2.48535139,71244.0,71243.0,0.140364]
[1717573343059,2.48535139,71244.0,71243.0,0.01]
[1717573344385,2.48535139,71244.0,71243.0,0.021]
[1717573346211,2.50435139,71244.0,71243.0,0.021]
[1717573346888,2.50435139,71244.0,71243.0,0.011]
[1717573347645,2.49535139,71244.0,71243.0,0.011]
[1717573348054,2.48535139,71244.0,71243.0,0.011]
[1717573348254,2.48535139,71244.0,71243.0,0.014]
[1717573348627,2.31945139,71244.0,71243.0,0.003]
[1717573348826,2.24285139,71244.0,71243.0,0.004]
[1717573349028,2.24285139,71244.0,71243.0,0.147364]
[1717573349385,2.24285139,71244.0,71243.0,0.141364]
[1717573349739,2.24285139,71244.0,71243.0,0.140364]
[1717573350085,2.24285139,71244.0,71243.0,0.141364]
[1717573351032,2.24467522,71244.0,71243.0,0.141364]
[1717573352241,2.24467522,71244.0,71243.0,0.298264]
[1717573353582,2.24467522,71244.0,71243.0,0.378764]
[1717573354548,2.24467522,71244.0,71243.0,0.52318293]
[1717573356194,2.24467522,71244.0,71243.0,0.54618293]
[1717573357741,2.24467522,71244.0,71243.0,0.82691193]
[1717573357941,2.24467522,71244.0,71243.0,1.10764093]
[1717573358169,2.24467522,71244.0,71243.0,1.20764093]
[1717573359153,2.24467522,71244.0,71243.0,1.21964093]
[1717573359358,2.24467522,71244.0,71243.0,1.23064093]
[1717573359560,2.24467522,71244.0,71243.0,1.25064093]
[1717573359797,2.24467522,71244.0,71243.0,1.23064093]
[1717573360616,2.24467522,71244.0,71243.0,0.71251193]
[1717573360819,2.24467522,71244.0,71243.0,0.33078293]
[1717573361068,2.24467522,71244.0,71243.0,0.43078293]
[1717573361277,2.24467522,71244.0,71243.0,0.43178293]
[1717573363183,2.24467522,71244.0,71243.0,0.51208293]
[1717573363892,2.24467522,71244.0,71243.0,0.51108293]
[1717573364221,2.24467522,71244.0,71243.0,0.51208293]
[1717573364795,2.24467522,71244.0,71243.0,0.51108293]
[1717573365021,2.24467522,71244.0,71243.0,0.71151193]
[1717573366299,2.24467522,71244.0,71243.0,0.71251193]
[1717573366497,2.24467522,71244.0,71243.0,0.43178293]
[1717573366758,2.24467522,71244.0,71243.0,0.186364]
[1717573366967,2.56227522,71244.0,71243.0,0.023]
[1717573367976,2.56227522,71244.0,71243.0,0.011]
[1717573368326,2.56227522,71244.0,71243.0,0.003]
[1717573369266,2.56227522,71244.0,71243.0,0.006]
[1717573369877,2.66437522,71244.0,71243.0,0.006]
[1717573370277,2.80473722,71244.0,71243.0,0.006]
[1717573375305,2.78573722,71244.0,71243.0,0.006]
[1717573375506,2.80473722,71244.0,71243.0,0.006]
[1717573377550,2.79573722,71244.0,71243.0,0.006]
[1717573377784,2.47507522,71244.0,71243.0,0.006]
[1717573378256,2.24467522,71244.0,71243.0,0.006]
[1717573382559,2.25467522,71244.0,71243.0,0.006]
[1717573382736,2.24467522,71244.0,71243.0,0.006]
[1717573382941,2.25467522,71244.0,71243.0,0.006]
[1717573383147,2.26367522,71244.0,71243.0,0.006]
[1717573383347,2.40403722,71244.0,71243.0,0.006]
[1717573384130,2.38503722,71244.0,71243.0,0.006]
[1717573385629,2.38503722,71244.0,71243.0,0.106]
[1717573386039,2.24467522,71244.0,71243.0,0.106]
[1717573387326,2.24467522,71244.0,71243.0,0.30615496]
[1717573389402,2.40403722,71244.0,71243.0,0.30615496]
[1717573390033,2.47213722,71244.0,71243.0,0.30615496]
[1717573395998,2.45313722,71244.0,71243.0,0.30615496]
[1717573396440,2.47213722,71244.0,71243.0,0.30615496]
[1717573396679,2.45313722,71244.0,71243.0,0.30615496]
[1717573396893,2.47213722,71244.0,71243.0,0.30615496]
[1717573401491,2.71833722,71244.0,71243.0,0.30615496]
[1717573401693,3.62420615,71244.0,71243.0,0.30615496]
[1717573401895,3.95829291,71244.0,71243.0,0.30615496]
[1717573402101,3.85323366,71244.0,71243.0,0.30615496]
[1717573402697,3.85323366,71244.0,71243.0,0.103]
[1717573403045,3.83916139,71244.0,71243.0,0.103]
[1717573403258,3.84216139,71244.0,71243.0,0.104]
[1717573403437,3.42720615,71244.0,71243.0,0.101]
[1717573403644,3.83970211,71244.0,71243.0,0.101]
[1717573404300,3.94474133,71244.0,71243.0,0.101]
[1717573404503,3.74474133,71244.0,71243.0,0.101]
[1717573404702,3.74474133,71244.0,71243.0,0.102]
[1717573404866,3.94474133,71244.0,71243.0,0.102]
[1717573405077,3.46401633,71244.0,71243.0,0.102]
[1717573405310,3.23048852,71244.0,71243.0,0.102]
[1717573405512,3.04865818,71244.0,71243.0,0.102]
[1717573405716,2.83616222,71244.0,71243.0,0.102]
[1717573406318,2.83616222,71244.0,71243.0,0.101]
[1717573406533,2.83316222,71244.0,71243.0,0.1]
[1717573406748,2.83316222,71244.0,71243.0,0.101]
[1717573406954,2.83616222,71244.0,71243.0,0.102]
[1717573407814,3.05259609,71244.0,71243.0,0.102]
[1717573408141,3.13662643,71244.0,71243.0,0.102]
[1717573408355,3.05259609,71244.0,71243.0,0.30215496]
[1717573408566,3.13662643,71244.0,71243.0,0.30215496]
[1717573408978,3.41009609,71244.0,71243.0,0.30215496]
[1717573409399,3.21009609,71244.0,71243.0,0.30215496]
[1717573410447,3.94027924,71244.0,71243.0,0.30215496]
[1717573410786,3.74027924,71244.0,71243.0,0.30215496]
[1717573412586,3.74027924,71244.0,71243.0,0.30310096]
[1717573412998,3.94027924,71244.0,71243.0,0.30310096]
[1717573413409,3.83524002,71244.0,71243.0,0.30310096]
[1717573414412,3.63524002,71244.0,71243.0,0.30310096]
[1717573414820,3.83524002,71244.0,71243.0,0.30310096]
[1717573420027,3.63524002,71244.0,71243.0,0.30310096]
[1717573420378,3.74028531,71244.0,71243.0,0.30310096]
[1717573420790,3.71927279,71244.0,71243.0,0.30310096]
[1717573421135,3.56177279,71244.0,71243.0,0.30310096]
[1717573422401,3.47774002,71244.0,71243.0,0.30310096]
[1717573422524,3.67774002,71244.0,71243.0,0.30310096]
[1717573423287,3.78278531,71244.0,71243.0,0.30310096]
[1717573423852,3.47774002,71244.0,71243.0,0.30310096]
[1717573424471,3.67774002,71244.0,71243.0,0.30310096]
[1717573425215,3.47774002,71244.0,71243.0,0.30310096]
[1717573425722,3.39744002,71244.0,71243.0,0.30310096]
[1717573425870,3.48147296,71244.0,71243.0,0.30310096]
[1717573426922,3.39744002,71244.0,71243.0,0.30310096]
[1717573427554,3.48147296,71244.0,71243.0,0.30310096]
[1717573427932,3.1204727,71244.0,71243.0,0.30310096]
[1717573428304,3.20450564,71244.0,71243.0,0.30310096]
[1717573428942,3.1204727,71244.0,71243.0,0.30310096]
[1717573429333,3.20450564,71244.0,71243.0,0.30310096]
[1717573430877,3.1204727,71244.0,71243.0,0.30310096]
[1717573431295,3.4800727,71244.0,71243.0,0.30310096]
[1717573431498,3.2800727,71244.0,71243.0,0.30310096]
[1717573432897,3.38515469,71244.0,71243.0,0.30310096]
[1717573435832,3.2800727,71244.0,71243.0,0.30310096]
[1717573437784,3.1204727,71244.0,71243.0,0.30310096]
[1717573438031,2.90403883,71244.0,71243.0,0.30310096]
[1717573438232,3.11766872,71244.0,71243.0,0.30310096]
[1717573439985,3.22280099,71244.0,71243.0,0.30310096]
[1717573441972,3.22180099,71244.0,71243.0,0.30310096]
[1717573443176,2.90303883,71244.0,71243.0,0.30310096]
[1717573443405,3.11892058,71244.0,71243.0,0.30310096]
[1717573444743,3.11838627,71244.0,71243.0,0.30310096]
[1717573449293,3.11994219,71244.0,71243.0,0.30310096]
[1717573450433,3.04956974,71244.0,71243.0,0.30310096]
[1717573450658,3.11766974,71244.0,71243.0,0.30310096]
[1717573450886,3.19606974,71244.0,71243.0,0.30310096]
[1717573451099,3.39606974,71244.0,71243.0,0.30310096]
[1717573451345,3.52238107,71244.0,71243.0,0.30310096]
[1717573451555,3.32238107,71244.0,71243.0,0.30310096]
[1717573456185,3.52238107,71244.0,71243.0,0.30310096]
[1717573459471,3.76350607,71244.0,71243.0,0.30310096]
[1717573459900,3.52470607,71244.0,71243.0,0.30310096]
[1717573460113,3.5218201,71244.0,71243.0,0.30310096]
[1717573460352,3.24399738,71244.0,71243.0,0.30310096]
[1717573460563,3.52472238,71244.0,71243.0,0.30310096]
[1717573462556,3.18376383,71244.0,71243.0,0.30310096]
[1717573462762,3.52365787,71244.0,71243.0,0.30310096]
[1717573462978,3.39733003,71244.0,71243.0,0.30310096]
[1717573463410,3.53723068,71244.0,71243.0,0.30310096]
[1717573464726,0.71804953,71244.0,71243.0,0.30310096]
[1717573464976,0.04208828,71273.0,71272.0,0.3]
[1717573465202,0.00862,71287.0,71286.0,0.240279]
[1717573465459,0.00862,71292.0,71289.0,0.3]
[1717573465682,0.33400075,71296.0,71295.0,0.240262]
[1717573465920,2.85324075,71300.0,71299.0,0.440254]
[1717573466141,2.71525843,71300.0,71299.0,1.26328093]
[1717573466376,2.71525843,71300.0,71299.0,1.69912257]
[1717573466622,0.00016977,71305.0,71304.0,0.32]
[1717573466840,0.00016977,71305.0,71304.0,0.93292355]
[1717573467063,0.00016977,71305.0,71304.0,1.3316061]
[1717573467294,0.00151,71309.0,71308.0,0.570236]
[1717573467511,4e-05,71320.0,71315.0,0.370222]
[1717573467760,4e-05,71320.0,71315.0,0.50464093]
[1717573468006,4e-05,71320.0,71315.0,0.66141935]
[1717573468219,4e-05,71320.0,71315.0,0.67441935]
[1717573468427,4e-05,71320.0,71319.0,0.12]
[1717573468640,4e-05,71320.0,71319.0,0.37873922]
[1717573468856,4e-05,71320.0,71319.0,0.5177347]
[1717573469363,4e-05,71320.0,71319.0,0.25873922]
[1717573469596,0.00036365,71326.0,71322.0,0.1]
[1717573469848,0.00036365,71326.0,71319.0,0.01432029]
[1717573470080,0.00036365,71326.0,71322.0,0.1]
[1717573470081,0.00613046,71325.0,71322.0,0.1]
[1717573470317,0.00613046,71325.0,71319.0,0.02832029]
[1717573470539,0.00613046,71325.0,71320.0,0.023]
[1717573470976,0.16139411,71328.0,71320.0,0.023]